bitfinex-derivatives/quotes_SOLF0:USTF0_20251202
["timestamp","ask_amount","ask_price","bid_price","bid_amount"]
[1764647998701,0.0510443,127.21,127.2,70.7]
[1764647999102,5.81476599,127.21,127.2,70.7]
[1764648000093,5.81476599,127.21,127.2,3.18]
[1764648000294,3.13,127.2,127.18,0.05741324]
[1764648000606,8.8947015,127.19,127.18,0.05741324]
[1764648001194,5.7647015,127.19,127.18,3.23741324]
[1764648001396,7.076,127.2,127.18,3.23741324]
[1764648001595,0.0510443,127.21,127.18,3.23741324]
[1764648002794,7.29096803,127.29,127.21,3.18]
[1764648002999,5.74277452,127.28,127.27,3.18]
[1764648003198,5.74277452,127.28,127.27,70.7]
[1764648003410,3.13,127.3,127.27,70.7]
[1764648003710,8.53267262,127.29,127.27,70.7]
[1764648004009,3.181361,127.3,127.27,70.75339791]
[1764648004196,5.7330617,127.29,127.27,70.75339791]
[1764648004396,10.252161,127.3,127.27,70.75339791]
[1764648004895,3.13,127.28,127.27,0.05339791]
[1764648006510,8.80869889,127.28,127.27,0.05339791]
[1764648006711,3.13,127.28,127.27,0.05339791]
[1764648009607,3.131361,127.3,127.27,3.46339791]
[1764648010012,3.131361,127.3,127.27,0.05339791]
[1764648010508,3.08,127.28,127.27,0.05339791]
[1764648010710,0.051361,127.3,127.27,5.81307725]
[1764648010897,0.051361,127.3,127.28,3.41]
[1764648011211,3.08,127.38,127.3,3.41]
[1764648011514,3.08,127.38,127.32,5.75967934]
[1764648011815,3.08,127.41,127.35,3.41]
[1764648012022,3.08,127.39,127.35,3.41]
[1764648012212,3.13556868,127.39,127.37,0.05502908]
[1764648013604,0.05556868,127.39,127.37,3.46502908]
[1764648014307,3.13556868,127.39,127.37,0.05502908]
[1764648017905,5.48524802,127.39,127.37,0.05502908]
[1764648018107,3.08,127.38,127.32,5.75967934]
[1764648018410,3.08,127.36,127.29,70.93]
[1764648018615,3.08,127.34,127.29,70.93]
[1764648019011,3.08,127.32,127.3,0.05074552]
[1764648019408,3.13866051,127.33,127.3,0.05074552]
[1764648021318,3.13866051,127.33,127.3,3.46074552]
[1764648023020,3.13866051,127.33,127.3,0.05074552]
[1764648024221,0.05866051,127.33,127.3,3.46074552]
[1764648024418,3.13866051,127.33,127.3,3.46074552]
[1764648024619,0.05866051,127.33,127.3,3.46074552]
[1764648025211,3.08,127.38,127.32,3.41]
[1764648026221,0.05101969,127.36,127.35,3.41]
[1764648027623,10.144,127.42,127.35,4.99]
[1764648027808,10.144,127.42,127.37,3.41]
[1764648028714,0.05578096,127.41,127.39,3.41]
[1764648030414,3.13578096,127.41,127.38,0.05197683]
[1764648030621,0.05578096,127.41,127.38,71.00197683]
[1764648030813,0.05578096,127.41,127.39,3.41]
[1764648031413,0.05578096,127.41,127.38,71.00197683]
[1764648031414,3.13578096,127.41,127.38,71.00197683]
[1764648032118,0.05578096,127.41,127.38,71.00197683]
[1764648032825,0.05578096,127.41,127.39,3.41]
[1764648038130,7.12018096,127.41,127.39,3.41]
[1764648038520,10.28018096,127.41,127.38,0.05197683]
[1764648038721,3.16,127.4,127.38,0.05197683]
[1764648039017,3.16,127.39,127.38,0.05197683]
[1764648040023,10.2251,127.4,127.38,0.05197683]
[1764648040620,3.16,127.39,127.38,0.05197683]
[1764648051434,3.16,127.37,127.33,3.15]
[1764648051638,3.16,127.41,127.35,3.15]
[1764648052336,0.05373327,127.39,127.37,3.20269915]
[1764648053439,0.05373327,127.39,127.37,70.68269915]
[1764648053738,3.16,127.44,127.39,3.15]
[1764648054343,10.2231,127.44,127.39,3.15]
[1764648054741,0.05853455,127.43,127.41,3.15]
[1764648060433,3.21853455,127.43,127.4,26.54264287]
[1764648060634,3.21853455,127.43,127.4,3.19958872]
[1764648062142,3.21853455,127.43,127.4,0.04958872]
[1764648062143,10.28203455,127.43,127.4,0.04958872]
[1764648062342,3.16,127.42,127.4,0.04958872]
[1764648062947,10.28203455,127.43,127.4,3.19958872]
[1764648063140,0.05853455,127.43,127.4,3.19958872]
[1764648065042,3.21853455,127.43,127.4,0.04958872]
[1764648065239,0.05853455,127.43,127.4,3.19958872]
[1764648066247,7.0617,127.46,127.4,3.19958872]
[1764648066846,109.8104,127.51,127.4,0.04958872]
[1764648067148,109.7464,127.58,127.48,10.18535327]
[1764648067449,112.899,127.59,127.5,3.15]
[1764648067645,3.16,127.58,127.5,3.15]
[1764648068354,0.0556621,127.55,127.54,3.15]
[1764648068648,109.723,127.61,127.54,3.15]
[1764648068842,109.723,127.61,127.56,3.34]
[1764648069351,113.113,127.61,127.56,3.34]
[1764648069648,7.11339021,127.6,127.57,3.39432563]
[1764648070043,0.05939021,127.6,127.57,3.39432563]
[1764648070239,3.39,127.63,127.57,3.39432563]
[1764648071357,343.0241,127.7,127.57,3.39432563]
[1764648071358,113.0368,127.7,127.6,3.34]
[1764648071546,113.0368,127.7,127.62,3.34]
[1764648072447,0.05692502,127.67,127.65,3.39323508]
[1764648073650,0.05692502,127.67,127.65,71.01323508]
[1764648074853,0.05692502,127.67,127.66,3.34]
[1764648076055,10.4364,127.74,127.66,3.34]
[1764648076450,3.39,127.73,127.66,3.34]
[1764648076846,0.05688839,127.71,127.68,0.05911986]
[1764648077049,0.05688839,127.71,127.68,3.39911986]
[1764648078046,0.05688839,127.71,127.68,0.05911986]
[1764648078047,3.44688839,127.71,127.68,0.05911986]
[1764648078251,3.39,127.7,127.68,0.05911986]
[1764648079451,10.18535327,127.74,127.68,3.39911986]
[1764648079452,3.39,127.74,127.68,3.39911986]
[1764648079652,112.9727,127.77,127.68,3.39911986]
[1764648079855,112.9727,127.77,127.68,3.34]
[1764648080050,3.39,127.77,127.68,3.34]
[1764648080561,3.39,127.75,127.69,3.34]
[1764648080758,0.0573176,127.73,127.71,0.05143461]
[1764648081954,3.4473176,127.73,127.71,0.05143461]
[1764648082265,3.39,127.72,127.71,0.05143461]
[1764648082852,4.95,127.72,127.71,0.05143461]
[1764648083262,3.4473176,127.73,127.71,0.05143461]
[1764648083758,0.0573176,127.73,127.71,0.05143461]
[1764648084057,0.0573176,127.73,127.71,3.39143461]
[1764648085557,7.045,127.76,127.71,3.39143461]
[1764648086351,7.044,127.78,127.71,3.39143461]
[1764648086548,0.05896502,127.76,127.74,3.34]
[1764648086860,3.39,127.74,127.73,0.05991535]
[1764648087161,120.0347,127.75,127.73,0.05991535]
[1764648087358,3.39,127.74,127.73,0.05991535]
[1764648088356,116.6447,127.75,127.73,0.05991535]
[1764648089763,120.0347,127.75,127.73,0.05991535]
[1764648090059,116.6447,127.75,127.73,0.05991535]
[1764648090461,7.0458,127.75,127.73,0.05991535]
[1764648090661,0.05896502,127.76,127.73,0.05991535]
[1764648090964,3.08,127.75,127.73,0.05991535]
[1764648091356,10.1258,127.75,127.73,0.05991535]
[1764648091663,0.05896502,127.76,127.73,3.27991535]
[1764648091861,3.13896502,127.76,127.73,3.27991535]
[1764648092158,3.08,127.74,127.73,0.05991535]
[1764648092562,112.6959,127.73,127.67,3.22]
[1764648092752,7.0479,127.71,127.67,3.22]
[1764648092958,112.7226,127.7,127.64,3.22]
[1764648093261,3.08,127.7,127.64,3.22]
[1764648093461,10.1284,127.7,127.64,3.22]
[1764648093658,0.05041502,127.68,127.67,3.22]
[1764648093964,3.08,127.74,127.67,3.22]
[1764648094166,10.1263,127.74,127.67,3.22]
[1764648094364,112.6885,127.74,127.67,3.22]
[1764648095159,0.05535588,127.72,127.69,3.27419826]
[1764648095854,7.0455,127.75,127.7,67.64]
[1764648096164,7.0455,127.75,127.71,3.22]
[1764648096757,7.0447,127.77,127.71,3.22]
[1764648096963,0.03119708,127.75,127.74,3.22]
[1764648097164,3.08,127.79,127.74,3.22]
[1764648097360,3.08,127.78,127.74,3.22]
[1764648098263,7.0451,127.76,127.73,3.27972317]
[1764648098865,3.08,127.78,127.73,3.27972317]
[1764648099669,7.0446,127.77,127.73,3.27972317]
[1764648101470,7.0435,127.79,127.73,3.27972317]
[1764648102166,10.2935,127.79,127.73,3.27972317]
[1764648102375,3.25,127.77,127.73,3.27972317]
[1764648102563,10.294,127.78,127.73,3.27972317]
[1764648103269,7.044,127.78,127.73,3.27972317]
[1764648103667,3.25,127.77,127.73,3.27972317]
[1764648103974,3.25,127.77,127.73,0.05972317]
[1764648105469,3.25,127.77,127.73,3.13972317]
[1764648108772,3.25,127.77,127.73,0.05972317]
[1764648108971,10.2945,127.77,127.73,0.05972317]
[1764648109277,3.25,127.76,127.73,0.05972317]
[1764648110373,3.25,127.79,127.73,3.13972317]
[1764648111078,3.25,127.78,127.73,3.13972317]
[1764648111267,5.59447701,127.77,127.73,3.13972317]
[1764648111473,3.25,127.79,127.73,3.13972317]
[1764648111672,3.25,127.79,127.75,0.05402401]
[1764648111868,10.294,127.78,127.75,0.05402401]
[1764648112176,8.85655786,127.77,127.75,0.05402401]
[1764648112376,3.25,127.77,127.75,0.05402401]
[1764648112774,10.2945,127.77,127.75,0.05402401]
[1764648113271,5.61392394,127.76,127.75,0.05402401]
[1764648113474,10.2945,127.77,127.75,0.05402401]
[1764648114181,5.61985906,127.76,127.75,0.05402401]
[1764648115381,10.2945,127.77,127.75,0.05402401]
[1764648115577,10.2935,127.79,127.75,3.13402401]
[1764648115881,8.86174926,127.78,127.75,3.13402401]
[1764648116180,5.6176857,127.77,127.75,3.13402401]
[1764648116372,10.2939,127.78,127.75,3.13402401]
[1764648116680,5.61804658,127.77,127.75,3.13402401]
[1764648116883,10.2939,127.78,127.75,3.13402401]
[1764648117180,5.6176857,127.77,127.75,3.13402401]
[1764648117483,10.2939,127.78,127.75,3.13402401]
[1764648117676,5.61881603,127.77,127.75,3.13402401]
[1764648117881,10.2939,127.78,127.75,3.13402401]
[1764648118181,5.61881644,127.77,127.75,3.13402401]
[1764648118381,5.61881644,127.77,127.75,0.05402401]
[1764648118382,10.2946,127.77,127.75,0.05402401]
[1764648118579,5.62057978,127.76,127.75,0.05402401]
[1764648119182,5.62179688,127.76,127.75,0.05402401]
[1764648119384,10.2946,127.77,127.75,0.05402401]
[1764648119688,3.25,127.79,127.75,3.13402401]
[1764648119888,5.62174106,127.78,127.75,3.13402401]
[1764648120184,5.62174106,127.77,127.75,3.13402401]
[1764648120383,3.25,127.79,127.75,3.13402401]
[1764648120574,12.66709236,127.78,127.75,3.13402401]
[1764648120778,3.25,127.76,127.75,0.05402401]
[1764648120985,8.87344012,127.76,127.75,0.05402401]
[1764648121384,3.25,127.76,127.75,0.05402401]
[1764648121586,8.87464347,127.76,127.75,0.05402401]
[1764648123891,7.0446,127.77,127.75,3.13402401]
[1764648124093,10.2937,127.79,127.75,3.13402401]
[1764648124394,5.63208063,127.78,127.75,3.13402401]
[1764648124594,3.25,127.78,127.75,3.13402401]
[1764648124887,3.25,127.76,127.75,0.05402401]
[1764648125880,8.87055323,127.76,127.75,0.05402401]
[1764648126095,3.25,127.76,127.75,0.05402401]
[1764648127485,3.25,127.74,127.69,7.0487]
[1764648127692,3.25,127.74,127.69,10.1287]
[1764648128092,3.25,127.73,127.69,3.08]
[1764648128295,3.25,127.73,127.67,7.0497]
[1764648128490,0.05035593,127.71,127.69,0.05190326]
[1764648128794,0.05035593,127.71,127.69,3.20190326]
[1764648132503,3.39035593,127.71,127.69,0.05190326]
[1764648132995,3.34,127.67,127.66,67.54]
[1764648135201,3.34,127.66,127.65,0.05568061]
[1764648139311,3.39114131,127.68,127.65,3.20568061]
[1764648139612,0.05114131,127.68,127.65,3.20568061]
[1764648140410,0.05114131,127.68,127.65,5.53654572]
[1764648140612,0.05114131,127.68,127.66,3.15]
[1764648140907,7.0468,127.73,127.67,5.48086511]
[1764648141105,10.3868,127.73,127.67,5.48086511]
[1764648141303,3.34,127.72,127.67,5.48086511]
[1764648141606,3.34,127.72,127.66,2.33086511]
[1764648141607,3.34,127.71,127.66,2.33086511]
[1764648141802,3.34,127.71,127.66,5.48086511]
[1764648141997,3.39478596,127.7,127.67,0.05226566]
[1764648142206,3.39478596,127.7,127.67,3.20226566]
[1764648142412,0.05478596,127.7,127.67,3.20226566]
[1764648144402,0.05478596,127.7,127.69,3.15]
[1764648148319,7.0466,127.73,127.69,3.15]
[1764648148812,3.34,127.74,127.69,3.15]
[1764648149317,3.34,127.74,127.71,3.15]
[1764648149915,7.0456,127.75,127.71,3.15]
[1764648150117,7.0446,127.77,127.71,3.15]
[1764648150320,3.34,127.76,127.73,0.05570469]
[1764648150517,3.34,127.76,127.73,67.57570469]
[1764648150820,3.34,127.75,127.73,67.57570469]
[1764648152213,3.34,127.74,127.73,0.05570469]
[1764648153924,3.34,127.75,127.73,0.05570469]
[1764648154521,3.34,127.76,127.73,3.20570469]
[1764648156428,10.3137,127.79,127.73,3.20570469]
[1764648156728,3.27,127.78,127.73,3.20570469]
[1764648158131,3.27,127.78,127.74,3.18]
[1764648158521,10.2026,127.81,127.74,10.2257]
[1764648158723,10.2026,127.81,127.77,3.23]
[1764648159423,10.2026,127.81,127.77,70.71]
[1764648159818,3.16,127.8,127.77,70.71]
[1764648160023,3.16,127.79,127.76,0.05512541]
[1764648160932,10.2036,127.79,127.76,0.05512541]
[1764648161123,3.16,127.78,127.76,0.05512541]
[1764648162028,10.2039,127.78,127.76,0.05512541]
[1764648163737,3.16,127.77,127.76,0.05512541]
[1764648168340,3.16,127.77,127.71,70.69]
[1764648168341,3.16,127.75,127.72,3.23]
[1764648169540,10.25896795,127.75,127.72,3.28246462]
[1764648170235,10.2063,127.74,127.72,0.05246462]
[1764648170432,0.05316795,127.75,127.72,3.28246462]
[1764648172736,10.2035,127.79,127.73,3.23]
[1764648172928,3.16,127.79,127.73,3.23]
[1764648173736,7.0451,127.76,127.75,0.05465171]
[1764648173937,10.2051,127.76,127.75,0.05465171]
[1764648179838,3.16,127.76,127.75,0.05465171]
[1764648181849,10.2045,127.77,127.75,0.05465171]
[1764648183249,3.16,127.76,127.75,0.00465171]
[1764648183645,7.0445,127.77,127.75,3.23465171]
[1764648183947,3.16,127.78,127.75,3.23465171]
[1764648184150,3.16,127.78,127.75,0.00465171]
[1764648184448,3.21195746,127.78,127.75,0.00465171]
[1764648184638,3.16,127.77,127.75,0.00465171]
[1764648186350,10.2044,127.77,127.75,0.00465171]
[1764648186546,3.16,127.76,127.75,0.00465171]
[1764648187541,3.16,127.74,127.7,77.678]
[1764648187742,3.16,127.74,127.71,3.23]
[1764648187941,112.7372,127.78,127.71,3.23]
[1764648188656,0.05609283,127.76,127.74,3.21]
[1764648191455,3.13609283,127.76,127.73,3.26965703]
[1764648192252,3.08,127.75,127.73,3.26965703]
[1764648192454,3.08,127.75,127.73,0.05965703]
[1764648193352,3.08,127.74,127.73,0.05965703]
[1764648195148,3.08,127.73,127.66,3.21]
[1764648195349,3.08,127.73,127.67,70.59]
[1764648195754,10.1273,127.72,127.68,3.21]
[1764648196358,0.05167974,127.71,127.69,3.26917502]
[1764648196567,7.09957974,127.71,127.69,3.26917502]
[1764648197068,0.05167974,127.71,127.69,3.26917502]
[1764648198469,3.08,127.76,127.69,3.26917502]
[1764648199057,3.08,127.76,127.7,3.21]
[1764648199556,10.18579772,127.74,127.72,0.05008894]
[1764648200459,3.08,127.73,127.72,0.05008894]
[1764648205767,7.10579772,127.74,127.72,0.05008894]
[1764648206270,3.08,127.73,127.72,0.05008894]
[1764648212466,10.1268,127.73,127.68,3.21]
[1764648212666,3.24,127.72,127.68,3.21]
[1764648213566,3.24,127.7,127.69,0.05670955]
[1764648214477,3.29572938,127.71,127.69,0.05670955]
[1764648217372,10.34352938,127.71,127.69,0.05670955]
[1764648217570,3.24,127.7,127.69,0.05670955]
[1764648223978,3.34,127.68,127.67,67.38]
[1764648225082,10.3899,127.67,127.66,0.05416886]
[1764648226575,7.0499,127.67,127.66,3.26416886]
[1764648226974,7.0499,127.67,127.66,0.05416886]
[1764648228175,10.3899,127.67,127.66,0.05416886]
[1764648232889,3.34,127.67,127.66,0.05416886]
[1764648234592,3.34,127.67,127.62,70.57]
[1764648234889,3.34,127.67,127.63,3.21]
[1764648235490,3.34,127.67,127.64,0.05363596]
[1764648236682,0.05101119,127.68,127.64,3.26363596]
[1764648236887,3.39101119,127.68,127.65,3.21]
[1764648239081,3.39101119,127.68,127.64,2.38495154]
[1764648239396,3.34,127.67,127.64,3.26363596]
[1764648240896,3.34,127.67,127.64,5.59495154]
[1764648241294,3.39101119,127.68,127.65,3.21]
[1764648241595,3.39101119,127.68,127.64,5.59495154]
[1764648241896,3.39101119,127.68,127.65,3.21]
[1764648242692,0.05101119,127.68,127.65,3.21]
[1764648242894,3.39101119,127.68,127.65,3.21]
[1764648248292,3.34,127.67,127.64,3.44363596]
[1764648248494,3.34,127.67,127.64,0.05363596]
[1764648249298,10.19051119,127.68,127.65,3.39]
[1764648249909,3.09,127.67,127.65,3.39]
[1764648250406,3.09,127.67,127.64,0.05363596]
[1764648250597,3.09,127.67,127.64,3.44363596]
[1764648251496,3.09,127.67,127.64,0.05363596]
[1764648252200,3.09,127.67,127.64,3.44363596]
[1764648254405,3.09,127.67,127.64,0.05363596]
[1764648255401,3.09,127.65,127.64,0.05363596]
[1764648255595,3.14101119,127.68,127.64,3.44363596]
[1764648256810,3.14101119,127.68,127.64,2.38495154]
[1764648257109,3.14101119,127.68,127.64,5.77495154]
[1764648257298,3.09,127.67,127.64,5.77495154]
[1764648258105,3.09,127.66,127.64,3.44363596]
[1764648258704,3.09,127.65,127.64,0.05363596]
[1764648260811,3.09,127.63,127.62,66.99163001]
[1764648262810,3.09,127.63,127.62,69.32294559]
[1764648263602,3.09,127.63,127.62,66.99163001]
[1764648264108,7.0526,127.62,127.61,0.05509993]
[1764648264305,10.1426,127.62,127.61,0.05509993]
[1764648267912,10.1426,127.62,127.56,67.38]
[1764648268102,3.09,127.58,127.54,3.39]
[1764648268308,3.09,127.58,127.54,5.72131558]
[1764648268601,7.056,127.56,127.55,3.39]
[1764648269202,7.056,127.56,127.54,5.7811653]
[1764648269702,7.056,127.56,127.54,3.44984972]
[1764648269919,10.146,127.56,127.54,0.05984972]
[1764648270211,3.09,127.55,127.54,0.05984972]
[1764648270718,3.2,127.55,127.54,0.05984972]
[1764648273817,3.2,127.53,127.51,67.38]
[1764648274818,3.25178876,127.53,127.51,67.43670204]
[1764648275411,10.2582,127.52,127.51,67.43670204]
[1764648275816,10.2582,127.52,127.51,0.05670204]
[1764648276021,0.05178876,127.53,127.51,3.41670204]
[1764648276321,3.25178876,127.53,127.51,3.41670204]
[1764648276521,3.25178876,127.53,127.51,0.05670204]
[1764648277018,3.2,127.52,127.51,0.05670204]
[1764648281425,7.10958876,127.53,127.51,3.18670204]
[1764648281623,10.28958876,127.53,127.51,0.05670204]
[1764648283524,3.18,127.52,127.51,0.05670204]
[1764648287230,3.18,127.5,127.46,72.86131558]
[1764648287424,3.18,127.49,127.46,67.4]
[1764648287625,3.18,127.48,127.46,67.4]
[1764648288219,3.23526764,127.48,127.46,67.4535574]
[1764648288824,3.18,127.47,127.46,67.4535574]
[1764648290429,3.18,127.47,127.46,0.0535574]
[1764648290631,3.18,127.45,127.39,7.65]
[1764648290933,113.0236,127.47,127.4,3.13]
[1764648291229,10.2424,127.45,127.41,3.13]
[1764648291431,109.8322,127.48,127.41,3.13]
[1764648291432,3.18,127.44,127.41,3.13]
[1764648291732,3.23583865,127.44,127.41,3.1849668]
[1764648292324,10.29853865,127.44,127.41,3.1849668]
[1764648292628,0.05583865,127.44,127.41,3.1849668]
[1764648300539,0.05583865,127.44,127.41,10.2491668]
[1764648300837,0.05583865,127.44,127.42,3.13]
[1764648301028,0.05583865,127.44,127.42,6.78445232]
[1764648301230,0.05583865,127.44,127.43,3.13]
[1764648303121,7.0603,127.49,127.44,3.13]
[1764648303327,3.18,127.51,127.46,3.13]
[1764648303931,3.18,127.48,127.45,70.57]
[1764648304232,3.23997533,127.48,127.45,70.6211294]
[1764648304823,3.23997533,127.48,127.45,67.4911294]
[1764648306429,10.2412,127.47,127.45,67.4911294]
[1764648307335,3.18,127.46,127.45,67.4911294]
[1764648308125,7.0612,127.47,127.45,67.4911294]
[1764648308330,10.2412,127.47,127.45,67.4911294]
[1764648309240,3.16,127.46,127.45,67.4911294]
[1764648309442,3.16,127.46,127.45,0.0511294]
[1764648312641,6.04722258,127.46,127.45,0.0511294]
[1764648312848,3.16,127.43,127.4,70.8]
[1764648313444,3.16,127.43,127.41,3.36]
[1764648313749,7.0642,127.42,127.41,0.0572017]
[1764648314249,7.0642,127.42,127.41,3.4172017]
[1764648314547,7.0642,127.42,127.41,0.0572017]
[1764648315143,10.2242,127.42,127.41,0.0572017]
[1764648318045,7.066,127.38,127.36,3.36]
[1764648318249,3.16,127.41,127.36,3.36]
[1764648319041,0.04948639,127.4,127.38,3.36]
[1764648319442,7.11478639,127.4,127.38,3.36]
[1764648320836,10.27478639,127.4,127.38,3.36]
[1764648321449,7.11478639,127.4,127.38,3.36]
[1764648326560,10.27478639,127.4,127.38,3.36]
[1764648326761,10.2255,127.39,127.37,3.41087512]
[1764648327865,7.0655,127.39,127.37,3.41087512]
[1764648328155,10.2255,127.39,127.37,3.41087512]
[1764648328760,3.16,127.38,127.37,0.05087512]
[1764648329462,7.0655,127.39,127.37,3.41087512]
[1764648330260,10.2255,127.39,127.37,3.41087512]
[1764648330462,7.0655,127.39,127.37,3.41087512]
[1764648332357,0.04948639,127.4,127.37,3.41087512]
[1764648332862,3.15948639,127.4,127.37,3.41087512]
[1764648333466,10.1754,127.39,127.37,3.41087512]
[1764648334264,3.11,127.38,127.37,0.05087512]
[1764648334659,7.0654,127.39,127.37,3.43087512]
[1764648335467,0.04948639,127.4,127.38,3.38]
[1764648337269,0.04948639,127.4,127.39,70.84]
[1764648346675,7.063,127.44,127.4,3.33]
[1764648347673,7.063,127.44,127.42,3.33]
[1764648347674,0.05340807,127.43,127.42,3.33]
[1764648351283,7.0618,127.46,127.42,3.33]
[1764648351480,7.0618,127.46,127.44,3.33]
[1764648352282,7.11377459,127.46,127.44,3.38259117]
[1764648355086,10.29377459,127.46,127.44,3.38259117]
[1764648355990,7.11377459,127.46,127.44,3.38259117]
[1764648358595,0.05197459,127.46,127.45,5.66944593]
[1764648359089,10.2396,127.5,127.46,3.33]
[1764648360192,0.05353737,127.49,127.47,3.38274321]
[1764648360694,3.18,127.47,127.42,3.33]
[1764648361086,3.18,127.49,127.45,3.33]
[1764648361689,0.05420468,127.48,127.46,3.38839979]
[1764648361890,0.05420468,127.48,127.46,5.72784572]
[1764648362092,0.05420468,127.48,127.47,3.33]
[1764648363797,3.23420468,127.48,127.46,67.47839979]
[1764648364192,3.18,127.47,127.46,67.47839979]
[1764648366693,3.18,127.47,127.46,0.05839979]
[1764648366901,5.51944593,127.47,127.46,0.05839979]
[1764648367398,3.18,127.47,127.46,0.05839979]
[1764648370195,7.07944593,127.47,127.46,0.05839979]
[1764648371996,10.2435,127.43,127.41,67.42]
[1764648372805,10.2435,127.43,127.41,70.56]
[1764648372999,3.18,127.45,127.41,70.61613308]
[1764648373202,3.18,127.45,127.42,3.14]
[1764648373509,3.18,127.45,127.41,70.61613308]
[1764648374000,3.23341953,127.44,127.41,70.61613308]
[1764648374790,7.0633,127.43,127.42,3.14]
[1764648375404,10.2433,127.43,127.41,70.61613308]
[1764648375697,7.0633,127.43,127.41,70.61613308]
[1764648377108,0.05341953,127.44,127.42,3.14]
[1764648379906,10.29621953,127.44,127.41,70.61613308]
[1764648380604,10.29621953,127.44,127.42,3.14]
[1764648381007,0.05341953,127.44,127.43,5.47944593]
[1764648384715,0.05341953,127.44,127.41,70.61613308]
[1764648384716,3.23341953,127.44,127.41,70.61613308]
[1764648384915,3.23341953,127.44,127.41,67.47613308]
[1764648386015,3.18,127.42,127.41,67.47613308]
[1764648386216,10.2433,127.43,127.41,67.47613308]
[1764648386608,3.18,127.42,127.41,67.47613308]
[1764648394416,3.18,127.42,127.41,0.05613308]
[1764648404222,3.2,127.42,127.41,0.05613308]
[1764648409231,3.2,127.4,127.36,70.57]
[1764648410236,7.0664,127.38,127.37,0.05372492]
[1764648410542,0.06006037,127.39,127.37,3.20372492]
[1764648411240,7.12546037,127.39,127.37,3.20372492]
[1764648411440,10.32546037,127.39,127.37,3.20372492]
[1764648414145,10.32546037,127.39,127.37,0.05372492]
[1764648414339,3.2,127.38,127.37,0.05372492]
[1764648414845,10.32546037,127.39,127.37,3.20372492]
[1764648415939,10.32546037,127.39,127.37,0.05372492]
[1764648416237,7.12546037,127.39,127.37,3.20372492]
[1764648416435,10.32546037,127.39,127.37,3.20372492]
[1764648421544,0.06006037,127.39,127.37,3.20372492]
[1764648421739,3.2,127.47,127.39,3.15]
[1764648421946,3.2,127.47,127.41,3.15]
[1764648422542,3.2,127.47,127.42,3.15]
[1764648422741,3.25934335,127.46,127.43,3.20171696]
[1764648423945,0.05934335,127.46,127.43,3.20171696]
[1764648424153,0.05934335,127.46,127.45,6.80885884]
[1764648425143,0.05934335,127.46,127.45,3.15]
[1764648434960,3.32,127.49,127.45,3.15]
[1764648435854,3.37003808,127.48,127.46,3.2456405]
[1764648436068,3.36957956,127.48,127.46,3.2456405]
[1764648436269,0.04957956,127.48,127.46,3.2456405]
[1764648437963,3.36957956,127.48,127.46,0.0556405]
[1764648439764,3.36957956,127.48,127.46,3.2456405]
[1764648439956,0.04957956,127.48,127.46,3.2456405]
[1764648441569,0.04957956,127.48,127.47,3.19]
[1764648442172,0.04957956,127.48,127.47,70.55]
[1764648443466,7.0583,127.52,127.48,3.19]
[1764648443971,10.3783,127.52,127.48,3.19]
[1764648444369,7.0583,127.52,127.48,3.19]
[1764648444565,0.04962289,127.51,127.49,3.24655409]
[1764648445977,3.36962289,127.51,127.49,0.05655409]
[1764648451570,10.42842289,127.51,127.49,0.05655409]
[1764648451775,3.18,127.5,127.49,0.05655409]
[1764648453075,3.22962289,127.51,127.49,3.42655409]
[1764648453271,3.22962289,127.51,127.49,0.05655409]
[1764648453670,10.28842289,127.51,127.49,0.05655409]
[1764648454478,3.18,127.5,127.49,0.05655409]
[1764648456371,10.2412,127.47,127.44,3.37]
[1764648456572,3.18,127.46,127.44,3.37]
[1764648456974,7.0612,127.47,127.44,3.37]
[1764648457279,7.12163642,127.47,127.44,3.42791284]
[1764648457475,10.30163642,127.47,127.44,3.42791284]